[Event "*** Titled Tuesday Blitz"]
[Site "Chess.com"]
[Date "2020.05.19"]
[Round "1"]
[White "Dare-Dare"]
[Black "Savagelittlemole"]
[Result "1/2-1/2"]
[WhiteElo "2232"]
[BlackElo "2535"]
[TimeControl "180+1"]
[EndTime "12:07:15 PDT"]
[Termination "Game drawn by repetition"]

1. Nf3 {[%clk 0:03:00.9]} 1... Nf6 {[%clk 0:02:58.5]} 2. c4 {[%clk 0:03:01]}
2... g6 {[%clk 0:02:56.1]} 3. Nc3 {[%clk 0:03:01]} 3... Bg7 {[%clk 0:02:54.3]}
4. e4 {[%clk 0:03:01.6]} 4... O-O {[%clk 0:02:52.7]} 5. d4 {[%clk 0:03:01.7]}
5... d6 {[%clk 0:02:52.9]} 6. h3 {[%clk 0:03:01.9]} 6... e5 {[%clk 0:02:47.2]}
7. d5 {[%clk 0:03:00.9]} 7... Na6 {[%clk 0:02:47.6]} 8. Be3 {[%clk 0:02:54.9]}
8... Nc5 {[%clk 0:02:46.9]} 9. Qc2 {[%clk 0:02:54.6]} 9... a5 {[%clk 0:02:45.4]}
10. g4 {[%clk 0:02:53.7]} 10... Kh8 {[%clk 0:02:43.5]} 11. Be2 {[%clk
0:02:52.5]} 11... c6 {[%clk 0:02:43.5]} 12. Bxc5 {[%clk 0:02:50.4]} 12... dxc5
{[%clk 0:02:43.1]} 13. O-O-O {[%clk 0:02:50.8]} 13... cxd5 {[%clk 0:02:33.3]}
14. Nxd5 {[%clk 0:02:48]} 14... Nxd5 {[%clk 0:02:15.2]} 15. Rxd5 {[%clk
0:02:44.7]} 15... Qc7 {[%clk 0:01:59.7]} 16. Kb1 {[%clk 0:02:41.3]} 16... Be6
{[%clk 0:01:48.6]} 17. Rd2 {[%clk 0:02:39.7]} 17... Rab8 {[%clk 0:01:44.1]} 18.
Rhd1 {[%clk 0:02:37.9]} 18... Rfd8 {[%clk 0:01:34.8]} 19. Ng5 {[%clk 0:02:36.3]}
19... Bh6 {[%clk 0:01:18.7]} 20. Nxe6 {[%clk 0:02:25.9]} 20... fxe6 {[%clk
0:01:19.6]} 21. Rxd8+ {[%clk 0:02:20.5]} 21... Rxd8 {[%clk 0:01:20.5]} 22. h4
{[%clk 0:02:16.5]} 22... Rd4 {[%clk 0:01:15]} 23. g5 {[%clk 0:02:15.6]} 23...
Bf8 {[%clk 0:01:13]} 24. h5 {[%clk 0:02:10.6]} 24... gxh5 {[%clk 0:01:11.1]} 25.
Rh1 {[%clk 0:02:08.4]} 25... Qd8 {[%clk 0:01:04.6]} 26. Bxh5 {[%clk 0:01:47.9]}
26... Qxg5 {[%clk 0:01:01.3]} 27. Qe2 {[%clk 0:01:45.4]} 27... Rd2 {[%clk
0:00:48.2]} 28. Qf3 {[%clk 0:01:42.1]} 28... Qf4 {[%clk 0:00:46.4]} 29. Qxf4
{[%clk 0:01:00]} 29... exf4 {[%clk 0:00:47.3]} 30. f3 {[%clk 0:00:59.1]} 30...
Kg7 {[%clk 0:00:42.4]} 31. Bg4 {[%clk 0:00:58]} 31... e5 {[%clk 0:00:36.7]} 32.
Kc1 {[%clk 0:00:51.3]} 32... Rd4 {[%clk 0:00:34.4]} 33. b3 {[%clk 0:00:50.7]}
33... Be7 {[%clk 0:00:32.3]} 34. Kc2 {[%clk 0:00:50.9]} 34... Bg5 {[%clk
0:00:28.4]} 35. Rh5 {[%clk 0:00:50.2]} 35... h6 {[%clk 0:00:26.5]} 36. Rh1
{[%clk 0:00:50.9]} 36... Kf6 {[%clk 0:00:20.4]} 37. a4 {[%clk 0:00:50.8]} 37...
Ke7 {[%clk 0:00:18.5]} 38. Bf5 {[%clk 0:00:50.4]} 38... b6 {[%clk 0:00:14.3]}
39. Bg4 {[%clk 0:00:51]} 39... Kf6 {[%clk 0:00:13.8]} 40. Rh5 {[%clk 0:00:51.6]}
40... Kg6 {[%clk 0:00:10.9]} 41. Rh1 {[%clk 0:00:52.2]} 41... Rd8 {[%clk
0:00:04.7]} 42. Bf5+ {[%clk 0:00:51.9]} 42... Kg7 {[%clk 0:00:04.9]} 43. Bg4
{[%clk 0:00:52.8]} 43... Kf6 {[%clk 0:00:04.9]} 44. Rh5 {[%clk 0:00:52.1]} 44...
Rd6 {[%clk 0:00:05]} 45. Rh1 {[%clk 0:00:52.6]} 45... Rd4 {[%clk 0:00:05.1]} 46.
Bf5 {[%clk 0:00:52.8]} 46... Kg7 {[%clk 0:00:04.9]} 47. Bg4 {[%clk 0:00:53.4]}
47... Bf6 {[%clk 0:00:03.8]} 48. Bh5 {[%clk 0:00:53.8]} 48... Rd8 {[%clk
0:00:03.7]} 49. Rg1+ {[%clk 0:00:54.2]} 49... Bg5 {[%clk 0:00:04.1]} 50. Bg4
{[%clk 0:00:53.9]} 50... Kg6 {[%clk 0:00:04.3]} 51. Bf5+ {[%clk 0:00:54.1]}
51... Kf6 {[%clk 0:00:04.2]} 52. Rh1 {[%clk 0:00:54.4]} 52... Ke7 {[%clk
0:00:03.3]} 53. Bg4 {[%clk 0:00:54]} 53... Kf6 {[%clk 0:00:03]} 54. Bh5 {[%clk
0:00:53.8]} 54... Rd4 {[%clk 0:00:03.2]} 55. Bg4 {[%clk 0:00:53.7]} 55... Rd8
{[%clk 0:00:03.7]} 1/2-1/2

[Event "*** Titled Tuesday Blitz"]
[Site "Chess.com"]
[Date "2020.05.19"]
[Round "1"]
[White "Bastiandash"]
[Black "Alomaterapia"]
[Result "0-1"]
[WhiteElo "2175"]
[BlackElo "2517"]
[TimeControl "180+1"]
[EndTime "12:07:15 PDT"]
[Termination "Alomaterapia won by resignation"]

1. d4 {[%clk 0:02:58.9]} 1... Nf6 {[%clk 0:02:48.4]} 2. Nf3 {[%clk 0:02:59.8]}
2... g6 {[%clk 0:02:48.7]} 3. c3 {[%clk 0:03:00.7]} 3... Bg7 {[%clk 0:02:49]} 4.
Bg5 {[%clk 0:02:58]} 4... O-O {[%clk 0:02:46.9]} 5. e3 {[%clk 0:02:57.6]} 5...
d6 {[%clk 0:02:44.7]} 6. Be2 {[%clk 0:02:56.1]} 6... Nc6 {[%clk 0:02:44.8]} 7.
O-O {[%clk 0:02:55]} 7... e5 {[%clk 0:02:45.1]} 8. dxe5 {[%clk 0:02:52.7]} 8...
dxe5 {[%clk 0:02:41.3]} 9. Nbd2 {[%clk 0:02:29.5]} 9... h6 {[%clk 0:02:28.7]}
10. Bh4 {[%clk 0:02:29]} 10... Qe7 {[%clk 0:02:24.7]} 11. Qc2 {[%clk 0:02:28]}
11... Bf5 {[%clk 0:02:23.3]} 12. e4 {[%clk 0:02:27.9]} 12... Be6 {[%clk
0:02:23.3]} 13. Nc4 {[%clk 0:02:14.1]} 13... g5 {[%clk 0:02:22.1]} 14. Bg3
{[%clk 0:02:13.7]} 14... Nd7 {[%clk 0:02:10]} 15. Ne3 {[%clk 0:02:09.7]} 15...
h5 {[%clk 0:01:55.4]} 16. Nd5 {[%clk 0:01:34.5]} 16... Bxd5 {[%clk 0:01:43.4]}
17. exd5 {[%clk 0:01:35.4]} 17... Nd8 {[%clk 0:01:42.9]} 18. h4 {[%clk
0:01:17.6]} 18... g4 {[%clk 0:01:28.1]} 19. Ng5 {[%clk 0:01:16.3]} 19... f5
{[%clk 0:01:27.9]} 20. Rfe1 {[%clk 0:01:07.5]} 20... Qf6 {[%clk 0:01:07]} 21.
Bc4 {[%clk 0:01:03.6]} 21... Kh8 {[%clk 0:01:01]} 22. Ne6 {[%clk 0:00:48.6]}
22... Nxe6 {[%clk 0:01:00.3]} 23. dxe6 {[%clk 0:00:49.5]} 23... f4 {[%clk
0:01:00.7]} 24. exd7 {[%clk 0:00:43.1]} 24... fxg3 {[%clk 0:01:00.7]} 25. fxg3
{[%clk 0:00:44]} 25... Rad8 {[%clk 0:00:58.4]} 26. Rad1 {[%clk 0:00:43.4]} 26...
Qe7 {[%clk 0:00:56.4]} 27. Qg6 {[%clk 0:00:36.8]} 27... Qc5+ {[%clk 0:00:54.1]}
28. Kh2 {[%clk 0:00:27.2]} 28... Qxc4 {[%clk 0:00:54.2]} 29. Qxh5+ {[%clk
0:00:25.1]} 29... Kg8 {[%clk 0:00:54.6]} 30. Qg5 {[%clk 0:00:20.4]} 30... Qe6
{[%clk 0:00:49.8]} 31. h5 {[%clk 0:00:20.1]} 31... Kh7 {[%clk 0:00:48.8]} 32.
Re4 {[%clk 0:00:18.5]} 32... Qf5 {[%clk 0:00:33.5]} 33. Rxg4 {[%clk 0:00:14.9]}
33... Qxg5 {[%clk 0:00:33.4]} 34. Rxg5 {[%clk 0:00:15.8]} 34... Rf7 {[%clk
0:00:33.3]} 35. g4 {[%clk 0:00:10.1]} 35... Rfxd7 {[%clk 0:00:32.1]} 36. Rxd7
{[%clk 0:00:10.6]} 36... Rxd7 {[%clk 0:00:33]} 37. Rf5 {[%clk 0:00:11.1]} 37...
e4 {[%clk 0:00:32.4]} 38. g5 {[%clk 0:00:11.5]} 38... e3 {[%clk 0:00:32.2]} 39.
Rf1 {[%clk 0:00:10.1]} 39... e2 {[%clk 0:00:31.8]} 40. Re1 {[%clk 0:00:10.6]}
40... Rd2 {[%clk 0:00:25.9]} 41. g4 {[%clk 0:00:09]} 41... Rxb2 {[%clk
0:00:24.7]} 42. Kg3 {[%clk 0:00:09.7]} 42... Bxc3 {[%clk 0:00:23.4]} 43. Kf2
{[%clk 0:00:09.6]} 0-1

[Event "*** Titled Tuesday Blitz"]
[Site "Chess.com"]
[Date "2020.05.19"]
[Round "1"]
[White "Igrok3069"]
[Black "hellokostya"]
[Result "1-0"]
[WhiteElo "2759"]
[BlackElo "2402"]
[TimeControl "180+1"]
[EndTime "12:07:16 PDT"]
[Termination "Igrok3069 won by resignation"]

1. d4 {[%clk 0:03:00.9]} 1... Nf6 {[%clk 0:02:53.5]} 2. Nf3 {[%clk 0:02:59.3]}
2... g6 {[%clk 0:02:53.1]} 3. Bf4 {[%clk 0:02:58.9]} 3... Bg7 {[%clk 0:02:52.9]}
4. e3 {[%clk 0:02:59.4]} 4... O-O {[%clk 0:02:52.7]} 5. Be2 {[%clk 0:03:00]}
5... d6 {[%clk 0:02:50.9]} 6. O-O {[%clk 0:03:00.1]} 6... b6 {[%clk 0:02:49.8]}
7. c4 {[%clk 0:02:59.2]} 7... Bb7 {[%clk 0:02:47.3]} 8. Nc3 {[%clk 0:02:59.1]}
8... Ne4 {[%clk 0:02:47]} 9. Nxe4 {[%clk 0:02:53.2]} 9... Bxe4 {[%clk
0:02:47.9]} 10. Ng5 {[%clk 0:02:53.3]} 10... Bb7 {[%clk 0:02:43.4]} 11. Bf3
{[%clk 0:02:54.2]} 11... Qc8 {[%clk 0:02:38.7]} 12. Rc1 {[%clk 0:02:49.4]} 12...
Nd7 {[%clk 0:02:31.6]} 13. h4 {[%clk 0:02:45.3]} 13... h6 {[%clk 0:02:23.3]} 14.
Nh3 {[%clk 0:02:29.6]} 14... e5 {[%clk 0:02:11.7]} 15. dxe5 {[%clk 0:02:26.7]}
15... Bxf3 {[%clk 0:01:53.6]} 16. Qxf3 {[%clk 0:02:27.6]} 16... dxe5 {[%clk
0:01:39.3]} 17. Bh2 {[%clk 0:02:27]} 17... Nc5 {[%clk 0:01:32.5]} 18. Rcd1
{[%clk 0:01:58.3]} 18... Qe6 {[%clk 0:01:29.4]} 19. b3 {[%clk 0:01:35.3]} 19...
a5 {[%clk 0:01:27.1]} 20. Qd5 {[%clk 0:01:18.4]} 20... Rfe8 {[%clk 0:01:04.5]}
21. f3 {[%clk 0:01:14.1]} 21... Qe7 {[%clk 0:00:53.3]} 22. h5 {[%clk 0:01:11]}
22... gxh5 {[%clk 0:00:44.7]} 23. Nf2 {[%clk 0:01:03.2]} 23... Rad8 {[%clk
0:00:42.4]} 24. Qc6 {[%clk 0:01:02.7]} 24... Qg5 {[%clk 0:00:38.8]} 25. e4
{[%clk 0:00:52.6]} 25... Ne6 {[%clk 0:00:25.6]} 26. Rd5 {[%clk 0:00:47]} 26...
Nd4 {[%clk 0:00:23.1]} 27. f4 {[%clk 0:00:33.8]} 27... Qh4 {[%clk 0:00:14.9]}
28. Rxd4 {[%clk 0:00:29.4]} 28... exd4 {[%clk 0:00:15]} 29. e5 {[%clk
0:00:27.6]} 29... d3 {[%clk 0:00:15]} 30. Nxd3 {[%clk 0:00:25.9]} 30... Re6
{[%clk 0:00:11.5]} 31. Qf3 {[%clk 0:00:24.8]} 31... Rg6 {[%clk 0:00:11.1]} 32.
f5 {[%clk 0:00:22.9]} 32... Qd4+ {[%clk 0:00:10.8]} 33. Nf2 {[%clk 0:00:21]}
33... Rg4 {[%clk 0:00:10.4]} 34. f6 {[%clk 0:00:19.7]} 34... Bf8 {[%clk
0:00:09.5]} 35. e6 {[%clk 0:00:19.4]} 35... Bc5 {[%clk 0:00:06.6]} 36. e7 {[%clk
0:00:17.5]} 36... Re8 {[%clk 0:00:06.3]} 37. Qc6 {[%clk 0:00:17]} 37... Rxg2+
{[%clk 0:00:02.2]} 38. Qxg2+ {[%clk 0:00:14.6]} 1-0

[Event "*** Titled Tuesday Blitz"]
[Site "Chess.com"]
[Date "2020.05.19"]
[Round "1"]
[White "CaspiIsrael"]
[Black "fabianvivasz"]
[Result "1-0"]
[WhiteElo "2604"]
[BlackElo "2307"]
[TimeControl "180+1"]
[EndTime "12:07:17 PDT"]
[Termination "CaspiIsrael won by checkmate"]

1. e4 {[%clk 0:02:56.1]} 1... e5 {[%clk 0:01:35]} 2. Nf3 {[%clk 0:02:55.4]} 2...
Nc6 {[%clk 0:01:32]} 3. d4 {[%clk 0:02:41.3]} 3... exd4 {[%clk 0:01:31.6]} 4.
Nxd4 {[%clk 0:02:41.2]} 4... Nf6 {[%clk 0:01:31.9]} 5. Nc3 {[%clk 0:02:39.4]}
5... Bb4 {[%clk 0:01:31.1]} 6. Nxc6 {[%clk 0:02:37.7]} 6... bxc6 {[%clk
0:01:32]} 7. Bd3 {[%clk 0:02:37.5]} 7... d5 {[%clk 0:01:31.3]} 8. exd5 {[%clk
0:02:37.3]} 8... O-O {[%clk 0:01:31.9]} 9. O-O {[%clk 0:02:37.3]} 9... Bg4
{[%clk 0:01:32.4]} 10. f3 {[%clk 0:02:30.7]} 10... Bh5 {[%clk 0:01:32.4]} 11. g4
{[%clk 0:02:24.1]} 11... Bg6 {[%clk 0:01:28.4]} 12. Bxg6 {[%clk 0:02:23.7]}
12... hxg6 {[%clk 0:01:29.3]} 13. dxc6 {[%clk 0:02:22.1]} 13... Qe8 {[%clk
0:01:25.5]} 14. Nd5 {[%clk 0:01:56]} 14... Rd8 {[%clk 0:01:09.3]} 15. c4 {[%clk
0:01:33]} 15... Qxc6 {[%clk 0:01:07.1]} 16. Nxf6+ {[%clk 0:01:25.8]} 16... gxf6
{[%clk 0:01:08]} 17. Qc2 {[%clk 0:01:23]} 17... Rd4 {[%clk 0:00:50.5]} 18. b3
{[%clk 0:01:19.3]} 18... Rfd8 {[%clk 0:00:38.1]} 19. Be3 {[%clk 0:01:15.1]}
19... Rd2 {[%clk 0:00:33.6]} 20. Bxd2 {[%clk 0:01:14.7]} 20... Rxd2 {[%clk
0:00:34.5]} 21. Qe4 {[%clk 0:01:11.4]} 21... Bc5+ {[%clk 0:00:16.7]} 22. Kh1
{[%clk 0:01:10.7]} 22... Qd6 {[%clk 0:00:15.1]} 23. f4 {[%clk 0:01:03.5]} 23...
f5 {[%clk 0:00:15]} 24. gxf5 {[%clk 0:01:01]} 24... gxf5 {[%clk 0:00:15.9]} 25.
Qf3 {[%clk 0:00:45.9]} 25... Qh6 {[%clk 0:00:14.4]} 26. Qg3+ {[%clk 0:00:42.8]}
26... Kf8 {[%clk 0:00:11.5]} 27. Rf3 {[%clk 0:00:32.7]} 27... Qd6 {[%clk
0:00:09.7]} 28. Raf1 {[%clk 0:00:31.7]} 28... Bd4 {[%clk 0:00:09.4]} 29. Qh3
{[%clk 0:00:23.2]} 29... Rxa2 {[%clk 0:00:08.5]} 30. Qxf5 {[%clk 0:00:22.3]}
30... Bg7 {[%clk 0:00:07.1]} 31. Qc8+ {[%clk 0:00:21.5]} 31... Ke7 {[%clk
0:00:07]} 32. Re1+ {[%clk 0:00:19.5]} 32... Kf6 {[%clk 0:00:07.4]} 33. Qg4
{[%clk 0:00:18.3]} 33... Bh6 {[%clk 0:00:07.1]} 34. Qh4+ {[%clk 0:00:17.2]}
34... Kg7 {[%clk 0:00:07.3]} 35. Rg1+ {[%clk 0:00:15.1]} 35... Kh7 {[%clk
0:00:07.3]} 36. Qg4 {[%clk 0:00:12.4]} 36... Qf6 {[%clk 0:00:06.7]} 37. Qg8#
{[%clk 0:00:12]} 1-0

[Event "*** Titled Tuesday Blitz"]
[Site "Chess.com"]
[Date "2020.05.19"]
[Round "1"]
[White "XiaoKangZhong"]
[Black "BillieKimbah"]
[Result "0-1"]
[WhiteElo "2441"]
[BlackElo "2862"]
[TimeControl "180+1"]
[EndTime "12:07:19 PDT"]
[Termination "BillieKimbah won by resignation"]

1. e4 {[%clk 0:02:11]} 1... c6 {[%clk 0:02:57.3]} 2. d4 {[%clk 0:02:06.3]} 2...
d5 {[%clk 0:02:58.2]} 3. e5 {[%clk 0:02:06.5]} 3... Bf5 {[%clk 0:02:57]} 4. h4
{[%clk 0:02:05.2]} 4... h6 {[%clk 0:02:52.5]} 5. Nf3 {[%clk 0:02:03.2]} 5... e6
{[%clk 0:02:52]} 6. Bd3 {[%clk 0:02:02]} 6... Bxd3 {[%clk 0:02:45.8]} 7. Qxd3
{[%clk 0:02:02.9]} 7... c5 {[%clk 0:02:45.9]} 8. O-O {[%clk 0:01:58.7]} 8... Nc6
{[%clk 0:02:45]} 9. c3 {[%clk 0:01:53.3]} 9... Rc8 {[%clk 0:02:41.3]} 10. Be3
{[%clk 0:01:49]} 10... Nge7 {[%clk 0:02:37.4]} 11. g3 {[%clk 0:01:37]} 11... Nf5
{[%clk 0:02:36.7]} 12. dxc5 {[%clk 0:01:34.5]} 12... a5 {[%clk 0:02:19.3]} 13.
Bd4 {[%clk 0:01:30.8]} 13... g5 {[%clk 0:02:13.3]} 14. hxg5 {[%clk 0:01:27.7]}
14... hxg5 {[%clk 0:02:14.2]} 15. Nbd2 {[%clk 0:01:27.8]} 15... g4 {[%clk
0:02:13.9]} 16. Nh2 {[%clk 0:01:24.4]} 16... Qg5 {[%clk 0:02:13.1]} 17. Rfd1
{[%clk 0:01:18.9]} 17... Bg7 {[%clk 0:01:59.8]} 18. Re1 {[%clk 0:01:15.5]} 18...
Rxh2 {[%clk 0:01:48.8]} 19. Kxh2 {[%clk 0:01:12.8]} 19... Qh6+ {[%clk
0:01:47.8]} 20. Kg2 {[%clk 0:01:05.9]} 20... Qh3+ {[%clk 0:01:47]} 21. Kg1
{[%clk 0:01:06.6]} 21... Kd7 {[%clk 0:01:30.4]} 22. Qf1 {[%clk 0:01:05.7]} 22...
Qh6 {[%clk 0:01:27.3]} 23. Rad1 {[%clk 0:00:58.8]} 23... Rh8 {[%clk 0:01:23.5]}
24. Qg2 {[%clk 0:00:57.9]} 24... Nfxd4 {[%clk 0:01:22.7]} 25. cxd4 {[%clk
0:00:57.8]} 25... Nxd4 {[%clk 0:01:23.3]} 26. Re3 {[%clk 0:00:56]} 26... Kc7
{[%clk 0:01:12.5]} 27. a3 {[%clk 0:00:55.4]} 27... a4 {[%clk 0:01:11.9]} 28. Rc1
{[%clk 0:00:50.6]} 28... Nc6 {[%clk 0:01:10]} 29. Rce1 {[%clk 0:00:47.3]} 29...
Bxe5 {[%clk 0:01:00.6]} 30. Nf1 {[%clk 0:00:45.1]} 30... Bxb2 {[%clk 0:00:58]}
31. Nh2 {[%clk 0:00:44]} 31... Qh5 {[%clk 0:00:50.5]} 32. Rb1 {[%clk 0:00:41.5]}
32... Bd4 {[%clk 0:00:49.9]} 33. Rd3 {[%clk 0:00:39.2]} 33... Ne5 {[%clk
0:00:45.7]} 34. Rxd4 {[%clk 0:00:20.4]} 34... Nf3+ {[%clk 0:00:41.7]} 35. Nxf3
{[%clk 0:00:02.4]} 35... gxf3 {[%clk 0:00:41.4]} 36. Rh4 {[%clk 0:00:03.2]}
36... Qxh4 {[%clk 0:00:35.6]} 37. gxh4 {[%clk 0:00:04.1]} 37... fxg2 {[%clk
0:00:35.4]} 38. Kxg2 {[%clk 0:00:04.4]} 38... Rxh4 {[%clk 0:00:35]} 39. Kg3
{[%clk 0:00:05.3]} 39... Rc4 {[%clk 0:00:34.5]} 40. Rh1 {[%clk 0:00:05.6]} 40...
Rc3+ {[%clk 0:00:32]} 41. Kg2 {[%clk 0:00:05.7]} 41... Rxa3 {[%clk 0:00:31.9]}
42. Rh7 {[%clk 0:00:06.5]} 42... Kc6 {[%clk 0:00:31.7]} 43. Rxf7 {[%clk
0:00:07.2]} 43... Rb3 {[%clk 0:00:31.6]} 44. Re7 {[%clk 0:00:07.6]} 44... a3
{[%clk 0:00:31.2]} 45. Rxe6+ {[%clk 0:00:08.1]} 45... Kxc5 {[%clk 0:00:31.5]}
46. f4 {[%clk 0:00:08.7]} 46... a2 {[%clk 0:00:30.9]} 47. Re1 {[%clk 0:00:08.9]}
47... Rb1 {[%clk 0:00:31]} 48. Re2 {[%clk 0:00:09.8]} 48... a1=Q {[%clk
0:00:30.2]} 49. Rc2+ {[%clk 0:00:10.7]} 0-1

[Event "*** Titled Tuesday Blitz"]
[Site "Chess.com"]
[Date "2020.05.19"]
[Round "1"]
[White "Kolle05"]
[Black "OK97"]
[Result "0-1"]
[WhiteElo "2400"]
[BlackElo "2754"]
[TimeControl "180+1"]
[EndTime "12:07:19 PDT"]
[Termination "OK97 won by resignation"]

1. e4 {[%clk 0:02:58.3]} 1... e5 {[%clk 0:02:58.9]} 2. Nf3 {[%clk 0:02:56.7]}
2... Nc6 {[%clk 0:02:59.2]} 3. Bb5 {[%clk 0:02:56]} 3... a6 {[%clk 0:02:58.4]}
4. Ba4 {[%clk 0:02:55.8]} 4... b5 {[%clk 0:02:58.4]} 5. Bb3 {[%clk 0:02:55.5]}
5... Na5 {[%clk 0:02:59]} 6. O-O {[%clk 0:02:49.3]} 6... d6 {[%clk 0:02:58.4]}
7. d4 {[%clk 0:02:47.9]} 7... exd4 {[%clk 0:02:58.3]} 8. Nxd4 {[%clk 0:02:30.4]}
8... Bb7 {[%clk 0:02:41.7]} 9. c3 {[%clk 0:02:12.5]} 9... c5 {[%clk 0:02:32.2]}
10. Nf5 {[%clk 0:02:02.5]} 10... g6 {[%clk 0:02:31.4]} 11. Ne3 {[%clk
0:01:47.2]} 11... Nxb3 {[%clk 0:02:28.3]} 12. axb3 {[%clk 0:01:46.2]} 12... Nf6
{[%clk 0:02:24.1]} 13. Nd5 {[%clk 0:01:41.2]} 13... Bg7 {[%clk 0:02:09.1]} 14.
Bg5 {[%clk 0:01:18.2]} 14... O-O {[%clk 0:02:08.5]} 15. Bxf6 {[%clk 0:01:09.1]}
15... Bxf6 {[%clk 0:02:08.5]} 16. Nd2 {[%clk 0:01:06.5]} 16... Re8 {[%clk
0:02:04.3]} 17. Re1 {[%clk 0:01:05.7]} 17... Bg7 {[%clk 0:01:42.3]} 18. Nf3
{[%clk 0:01:04.8]} 18... Re6 {[%clk 0:01:31.5]} 19. Qd3 {[%clk 0:01:03.2]} 19...
Rc8 {[%clk 0:01:27.6]} 20. Nf4 {[%clk 0:00:56.6]} 20... Re8 {[%clk 0:01:12.2]}
21. Rad1 {[%clk 0:00:54]} 21... Qe7 {[%clk 0:01:08.1]} 22. Qxd6 {[%clk 0:00:45]}
22... Qxd6 {[%clk 0:01:00.6]} 23. Rxd6 {[%clk 0:00:45.9]} 23... Bxe4 {[%clk
0:00:55.6]} 24. Rxa6 {[%clk 0:00:41.5]} 24... b4 {[%clk 0:00:53.9]} 25. cxb4
{[%clk 0:00:29.8]} 25... cxb4 {[%clk 0:00:54.8]} 26. Rb6 {[%clk 0:00:28.9]}
26... Bxb2 {[%clk 0:00:39.4]} 27. Rxb4 {[%clk 0:00:24.3]} 27... Ba8 {[%clk
0:00:26.5]} 28. Rxe8+ {[%clk 0:00:23]} 28... Rxe8 {[%clk 0:00:27.4]} 29. h3
{[%clk 0:00:20.9]} 29... h6 {[%clk 0:00:25.2]} 30. Nd3 {[%clk 0:00:19.8]} 30...
Bc3 {[%clk 0:00:23.1]} 31. Rc4 {[%clk 0:00:19.7]} 31... Bf6 {[%clk 0:00:22.9]}
32. b4 {[%clk 0:00:19.7]} 32... Rd8 {[%clk 0:00:19.8]} 33. Nc5 {[%clk
0:00:18.9]} 33... Rd1+ {[%clk 0:00:19.7]} 34. Kh2 {[%clk 0:00:18.8]} 34... Bd5
{[%clk 0:00:20.3]} 35. Rc2 {[%clk 0:00:17.8]} 35... Be7 {[%clk 0:00:20.9]} 36.
b5 {[%clk 0:00:17.5]} 36... Bd6+ {[%clk 0:00:21.3]} 37. g3 {[%clk 0:00:13.5]}
37... Bxf3 {[%clk 0:00:21.3]} 0-1

[Event "*** Titled Tuesday Blitz"]
[Site "Chess.com"]
[Date "2020.05.19"]
[Round "1"]
[White "anon569"]
[Black "jtayar88"]
[Result "0-1"]
[WhiteElo "2260"]
[BlackElo "2561"]
[TimeControl "180+1"]
[EndTime "12:07:19 PDT"]
[Termination "jtayar88 won on time"]

1. e4 {[%clk 0:03:00.6]} 1... c5 {[%clk 0:02:59.1]} 2. Nf3 {[%clk 0:03:00.3]}
2... d6 {[%clk 0:02:57.7]} 3. d4 {[%clk 0:03:00.6]} 3... Nf6 {[%clk 0:02:58]} 4.
Nc3 {[%clk 0:02:59]} 4... cxd4 {[%clk 0:02:58]} 5. Nxd4 {[%clk 0:02:58.5]} 5...
a6 {[%clk 0:02:58.9]} 6. Bg5 {[%clk 0:02:57.5]} 6... e6 {[%clk 0:02:58.8]} 7. f4
{[%clk 0:02:57.8]} 7... Be7 {[%clk 0:02:59.1]} 8. Qf3 {[%clk 0:02:57.9]} 8...
Qc7 {[%clk 0:02:59.4]} 9. O-O-O {[%clk 0:02:57.8]} 9... Nbd7 {[%clk 0:02:59.8]}
10. g4 {[%clk 0:02:56.7]} 10... h6 {[%clk 0:03:00]} 11. Bh4 {[%clk 0:02:51.6]}
11... g5 {[%clk 0:02:59.3]} 12. e5 {[%clk 0:02:46.7]} 12... dxe5 {[%clk
0:03:00.2]} 13. fxg5 {[%clk 0:02:46.4]} 13... hxg5 {[%clk 0:02:58.8]} 14. Bg3
{[%clk 0:02:46.7]} 14... Qa5 {[%clk 0:02:49.6]} 15. Nb3 {[%clk 0:02:42.5]} 15...
Qb4 {[%clk 0:02:48.4]} 16. Be2 {[%clk 0:02:15.3]} 16... e4 {[%clk 0:02:29.4]}
17. Qe3 {[%clk 0:01:50.1]} 17... Nc5 {[%clk 0:02:22.2]} 18. Be5 {[%clk
0:01:01.9]} 18... Nxb3+ {[%clk 0:01:33]} 19. cxb3 {[%clk 0:00:32.2]} 19... Rg8
{[%clk 0:01:31.4]} 20. Rhf1 {[%clk 0:00:11.2]} 20... Rg6 {[%clk 0:00:46.5]} 21.
Kb1 {[%clk 0:00:08.6]} 21... Bd7 {[%clk 0:00:44.5]} 22. Bg3 {[%clk 0:00:05.6]}
22... Bc6 {[%clk 0:00:39.7]} 23. Rd4 {[%clk 0:00:05.2]} 23... Bc5 {[%clk
0:00:25.1]} 24. Rxb4 {[%clk 0:00:03.8]} 24... Bxe3 {[%clk 0:00:24.7]} 25. a4
{[%clk 0:00:02.8]} 25... Nd5 {[%clk 0:00:12.8]} 26. Rc4 {[%clk 0:00:03.1]} 26...
Nxc3+ {[%clk 0:00:11.7]} 27. bxc3 {[%clk 0:00:03.6]} 27... Bd5 {[%clk
0:00:10.4]} 28. Rb4 {[%clk 0:00:03.8]} 28... b6 {[%clk 0:00:09.8]} 29. c4 {[%clk
0:00:04.1]} 29... a5 {[%clk 0:00:08.5]} 30. Rb5 {[%clk 0:00:04]} 30... Bc6
{[%clk 0:00:08.4]} 31. Re5 {[%clk 0:00:04.5]} 31... Bd4 {[%clk 0:00:08.6]} 0-1